bitfinex-derivatives/quotes_ETHF0:USTF0_20260117
["timestamp","ask_amount","ask_price","bid_price","bid_amount"]
[1768632902863,0.93381718,3292.9,3292.0,0.98500087]
[1768632903063,0.93381718,3292.9,3291.0,0.98500087]
[1768632903064,0.00300038,3293.2,3292.3,0.98500087]
[1768632903259,0.13055662,3293.5,3292.7,0.98500087]
[1768632903464,1.20070176,3293.4,3292.7,0.98500087]
[1768632903664,0.93375466,3293.3,3292.7,0.98500087]
[1768632903859,1.708,3293.5,3292.7,0.98500087]
[1768632904069,0.93369693,3293.4,3292.7,0.98500087]
[1768632904268,1.708,3293.5,3292.7,0.98500087]
[1768632904467,0.00275323,3293.4,3292.7,0.98500087]
[1768632908374,0.00275323,3293.4,3292.9,0.98500087]
[1768632908570,10.68815103,3293.9,3292.9,0.98500087]
[1768632908770,4.29115103,3293.9,3292.9,0.98500087]
[1768632909172,1.708,3293.9,3292.9,0.98500087]
[1768632909562,1.71145132,3293.9,3292.9,0.98500087]
[1768632910279,0.00345132,3293.9,3292.9,0.98500087]
[1768632910769,0.00345132,3293.9,3292.7,0.98500087]
[1768632931787,0.00345132,3293.9,3292.7,1.1281705]
[1768632945593,0.00345132,3293.9,3292.8,0.14316963]
[1768633045116,0.00345132,3293.9,3293.0,0.13984626]
[1768633068232,0.9845558,3294.2,3293.0,0.13984626]
[1768633068431,0.26696188,3294.1,3293.0,0.13984626]
[1768633068631,0.26696188,3294.0,3293.0,0.13984626]
[1768633068831,0.9845558,3294.2,3293.0,0.13984626]
[1768633069031,0.26696171,3294.1,3293.0,0.13984626]
[1768633069234,0.26696171,3294.0,3293.0,0.13984626]
[1768633069533,0.00257436,3294.1,3293.0,0.13984626]
[1768633069733,0.26696125,3294.0,3293.0,0.13984626]
[1768633070034,0.00257436,3294.1,3293.0,0.13984626]
[1768633070333,0.26696125,3294.0,3293.0,0.13984626]
[1768633070533,0.00257436,3294.1,3293.0,0.13984626]
[1768633070733,0.26696093,3294.0,3293.0,0.13984626]
[1768633070933,0.00257436,3294.1,3293.0,0.13984626]
[1768633071133,0.26696093,3294.0,3293.0,0.13984626]
[1768633071333,0.00257436,3294.1,3293.0,0.13984626]
[1768633071542,0.26696067,3294.0,3293.0,0.13984626]
[1768633071842,0.00257436,3294.1,3293.0,0.13984626]
[1768633072037,0.26696068,3294.0,3293.0,0.13984626]
[1768633072236,0.00257436,3294.1,3293.0,0.13984626]
[1768633072537,0.26696025,3294.0,3293.0,0.13984626]
[1768633072738,0.00257436,3294.1,3293.0,0.13984626]
[1768633072939,0.26696026,3294.0,3293.0,0.13984626]
[1768633073137,0.00257436,3294.1,3293.0,0.13984626]
[1768633073338,0.26696,3294.0,3293.0,0.13984626]
[1768633073539,0.00257436,3294.1,3293.0,0.13984626]
[1768633073739,0.26696001,3294.0,3293.0,0.13984626]
[1768633073941,0.00257436,3294.1,3293.0,0.13984626]
[1768633074142,0.26696001,3294.0,3293.0,0.13984626]
[1768633074341,0.00257436,3294.1,3293.0,0.13984626]
[1768633074642,0.26695989,3294.0,3293.0,0.13984626]
[1768633074842,0.00257436,3294.1,3293.0,0.13984626]
[1768633075141,0.2669599,3294.0,3293.0,0.13984626]
[1768633075342,0.00257436,3294.1,3293.0,0.13984626]
[1768633075639,0.26695968,3294.0,3293.0,0.13984626]
[1768633075847,0.00257436,3294.1,3293.0,0.13984626]
[1768633076040,0.2669598,3294.0,3293.0,0.13984626]
[1768633076242,0.00257436,3294.1,3293.0,0.13984626]
[1768633076443,0.26695972,3294.0,3293.0,0.13984626]
[1768633076644,0.00257436,3294.1,3293.0,0.13984626]
[1768633076844,0.26695973,3294.0,3293.0,0.13984626]
[1768633077144,0.00257436,3294.1,3293.0,0.13984626]
[1768633077344,0.26695992,3294.0,3293.0,0.13984626]
[1768633077546,0.00257436,3294.1,3293.0,0.13984626]
[1768633077751,0.26695992,3294.0,3293.0,0.13984626]
[1768633077952,0.00257436,3294.1,3293.0,0.13984626]
[1768633078150,0.26695992,3294.0,3293.0,0.13984626]
[1768633078338,0.00257436,3294.1,3293.0,0.13984626]
[1768633078541,0.26696021,3294.0,3293.0,0.13984626]
[1768633078748,0.00257436,3294.1,3293.0,0.13984626]
[1768633078949,0.26696021,3294.0,3293.0,0.13984626]
[1768633079148,0.00257436,3294.1,3293.0,0.13984626]
[1768633079345,0.26696052,3294.0,3293.0,0.13984626]
[1768633079546,0.00257436,3294.1,3293.0,0.13984626]
[1768633079845,0.26696052,3294.0,3293.0,0.13984626]
[1768633080049,0.00257436,3294.1,3293.0,0.13984626]
[1768633080244,0.26696052,3294.0,3293.0,0.13984626]
[1768633080448,0.00257436,3294.1,3293.0,0.13984626]
[1768633080648,0.26696041,3294.0,3293.0,0.13984626]
[1768633080948,0.00257436,3294.1,3293.0,0.13984626]
[1768633081142,0.26696041,3294.0,3293.0,0.13984626]
[1768633081344,0.00257436,3294.1,3293.0,0.13984626]
[1768633081637,0.26696038,3294.0,3293.0,0.13984626]
[1768633081842,0.00257436,3294.1,3293.0,0.13984626]
[1768633082043,0.26696038,3294.0,3293.0,0.13984626]
[1768633082242,0.00257436,3294.1,3293.0,0.13984626]
[1768633082440,0.26696036,3294.0,3293.0,0.13984626]
[1768633082652,0.00257436,3294.1,3293.0,0.13984626]
[1768633082853,0.26696036,3294.0,3293.0,0.13984626]
[1768633083055,0.00257436,3294.1,3293.0,0.13984626]
[1768633083256,0.26696036,3294.0,3293.0,0.13984626]
[1768633083450,0.00257436,3294.1,3293.0,0.13984626]
[1768633083649,0.26696033,3294.0,3293.0,0.13984626]
[1768633083850,0.00257436,3294.1,3293.0,0.13984626]
[1768633084051,0.26696033,3294.0,3293.0,0.13984626]
[1768633084252,0.00257436,3294.1,3293.0,0.13984626]
[1768633084454,0.26696031,3294.0,3293.0,0.13984626]
[1768633084752,0.00257436,3294.1,3293.0,0.13984626]
[1768633084951,0.26696031,3294.0,3293.0,0.13984626]
[1768633085151,0.00257436,3294.1,3293.0,0.13984626]
[1768633085350,0.26696029,3294.0,3293.0,0.13984626]
[1768633085551,0.00257436,3294.1,3293.0,0.13984626]
[1768633085746,0.26696029,3294.0,3293.0,0.13984626]
[1768633085946,0.00257436,3294.1,3293.0,0.13984626]
[1768633086157,0.26696029,3294.0,3293.0,0.13984626]
[1768633086348,0.00257436,3294.1,3293.0,0.13984626]
[1768633086547,0.26696033,3294.0,3293.0,0.13984626]
[1768633086748,0.00257436,3294.1,3293.0,0.13984626]
[1768633086951,0.26696033,3294.0,3293.0,0.13984626]
[1768633087150,0.00257436,3294.1,3293.0,0.13984626]
[1768633087357,0.26696038,3294.0,3293.0,0.13984626]
[1768633087560,0.00257436,3294.1,3293.0,0.13984626]
[1768633087750,0.26696038,3294.0,3293.0,0.13984626]
[1768633087950,0.00257436,3294.1,3293.0,0.13984626]
[1768633088151,0.26696038,3294.0,3293.0,0.13984626]
[1768633088350,0.00257436,3294.1,3293.0,0.13984626]
[1768633088650,0.26696043,3294.0,3293.0,0.13984626]
[1768633088850,0.00257436,3294.1,3293.0,0.13984626]
[1768633089150,0.26696043,3294.0,3293.0,0.13984626]
[1768633089350,0.00257436,3294.1,3293.0,0.13984626]
[1768633089652,0.26696049,3294.0,3293.0,0.13984626]
[1768633089852,0.00257436,3294.1,3293.0,0.13984626]
[1768633090058,0.26696049,3294.0,3293.0,0.13984626]
[1768633090259,0.00257436,3294.1,3293.0,0.13984626]
[1768633090459,0.26696054,3294.0,3293.0,0.13984626]
[1768633090660,0.00257436,3294.1,3293.0,0.13984626]
[1768633090860,0.26696054,3294.0,3293.0,0.13984626]
[1768633091161,0.00257436,3294.1,3293.0,0.13984626]
[1768633091355,0.2669606,3294.0,3293.0,0.13984626]
[1768633091655,0.00257436,3294.1,3293.0,0.13984626]
[1768633091855,0.2669606,3294.0,3293.0,0.13984626]
[1768633092058,0.00257436,3294.1,3293.0,0.13984626]
[1768633092259,0.2669606,3294.0,3293.0,0.13984626]
[1768633092558,0.00257436,3294.1,3293.0,0.13984626]
[1768633092759,0.26696066,3294.0,3293.0,0.13984626]
[1768633092962,0.00257436,3294.1,3293.0,0.13984626]
[1768633093262,0.26696066,3294.0,3293.0,0.13984626]
[1768633093452,0.00257436,3294.1,3293.0,0.13984626]
[1768633093654,0.26696073,3294.0,3293.0,0.13984626]
[1768633093870,0.00257436,3294.1,3293.0,0.13984626]
[1768633094158,0.26696073,3294.0,3293.0,0.13984626]
[1768633094358,0.00257436,3294.1,3293.0,0.13984626]
[1768633094657,0.2669608,3294.0,3293.0,0.13984626]
[1768633094858,0.00257436,3294.1,3293.0,0.13984626]
[1768633095056,0.2669608,3294.0,3293.0,0.13984626]
[1768633095261,0.00257436,3294.1,3293.0,0.13984626]
[1768633095562,0.26696086,3294.0,3293.0,0.13984626]
[1768633095762,0.00257436,3294.1,3293.0,0.13984626]
[1768633095962,0.26696076,3294.0,3293.0,0.13984626]
[1768633096155,0.00257436,3294.1,3293.0,0.13984626]
[1768633096356,0.26696075,3294.0,3293.0,0.13984626]
[1768633096555,0.00257436,3294.1,3293.0,0.13984626]
[1768633096762,0.26696081,3294.0,3293.0,0.13984626]
[1768633096965,0.00257436,3294.1,3293.0,0.13984626]
[1768633097154,0.26696081,3294.0,3293.0,0.13984626]
[1768633097354,0.00257436,3294.1,3293.0,0.13984626]
[1768633097564,0.26696089,3294.0,3293.0,0.13984626]
[1768633097863,0.00257436,3294.1,3293.0,0.13984626]
[1768633098165,0.26696089,3294.0,3293.0,0.13984626]
[1768633098361,0.00257436,3294.1,3293.0,0.13984626]
[1768633098555,0.26696099,3294.0,3293.0,0.13984626]
[1768633098755,0.00257436,3294.1,3293.0,0.13984626]
[1768633098954,0.26696099,3294.0,3293.0,0.13984626]
[1768633099161,0.00257436,3294.1,3293.0,0.13984626]
[1768633099462,0.26696106,3294.0,3293.0,0.13984626]
[1768633099760,0.00257436,3294.1,3293.0,0.13984626]
[1768633099961,0.26696106,3294.0,3293.0,0.13984626]
[1768633100260,0.00257436,3294.1,3293.0,0.13984626]
[1768633100458,0.26696112,3294.0,3293.0,0.13984626]
[1768633100659,0.00257436,3294.1,3293.0,0.13984626]
[1768633100848,0.26696112,3294.0,3293.0,0.13984626]
[1768633101055,0.00257436,3294.1,3293.0,0.13984626]
[1768633101253,0.26696112,3294.0,3293.0,0.13984626]
[1768633101464,0.00257436,3294.1,3293.0,0.13984626]
[1768633101650,0.26696119,3294.0,3293.0,0.13984626]
[1768633101856,0.00257436,3294.1,3293.0,0.13984626]
[1768633102057,0.26696119,3294.0,3293.0,0.13984626]
[1768633102353,0.00257436,3294.1,3293.0,0.13984626]
[1768633102553,0.26696148,3294.0,3293.0,0.13984626]
[1768633102750,0.00257436,3294.1,3293.0,0.13984626]
[1768633102950,0.26696148,3294.0,3293.0,0.13984626]
[1768633103157,0.00257436,3294.1,3293.0,0.13984626]
[1768633103356,0.26696179,3294.0,3293.0,0.13984626]
[1768633103564,0.00257436,3294.1,3293.0,0.13984626]
[1768633103763,0.26696179,3294.0,3293.0,0.13984626]
[1768633103964,0.00257436,3294.1,3293.0,0.13984626]
[1768633104163,0.26696179,3294.0,3293.0,0.13984626]
[1768633104365,0.00257436,3294.1,3293.0,0.13984626]
[1768633104557,0.26696211,3294.0,3293.0,0.13984626]
[1768633104756,0.00257436,3294.1,3293.0,0.13984626]
[1768633104957,0.26696211,3294.0,3293.0,0.13984626]
[1768633105162,0.00257436,3294.1,3293.0,0.13984626]
[1768633105461,0.26696246,3294.0,3293.0,0.13984626]
[1768633105661,0.00257436,3294.1,3293.0,0.13984626]
[1768633105851,0.26696246,3294.0,3293.0,0.13984626]
[1768633106059,0.00257436,3294.1,3293.0,0.13984626]
[1768633106266,0.26696268,3294.0,3293.0,0.13984626]
[1768633106562,0.00257436,3294.1,3293.0,0.13984626]
[1768633106765,0.26696266,3294.0,3293.0,0.13984626]
[1768633106967,0.00257436,3294.1,3293.0,0.13984626]
[1768633107175,0.26696266,3294.0,3293.0,0.13984626]
[1768633107360,0.00257436,3294.1,3293.0,0.13984626]
[1768633107658,0.26696288,3294.0,3293.0,0.13984626]
[1768633107858,0.00257436,3294.1,3293.0,0.13984626]
[1768633108060,0.26696288,3294.0,3293.0,0.13984626]
[1768633108259,0.00257436,3294.1,3293.0,0.13984626]
[1768633108460,0.26696285,3294.0,3293.0,0.13984626]
[1768633108665,0.00257436,3294.1,3293.0,0.13984626]
[1768633108872,0.26696285,3294.0,3293.0,0.13984626]
[1768633109059,0.00257436,3294.1,3293.0,0.13984626]
[1768633109261,0.26696285,3294.0,3293.0,0.13984626]
[1768633109560,0.00257436,3294.1,3293.0,0.13984626]
[1768633109757,0.26696284,3294.0,3293.0,0.13984626]
[1768633109960,0.00257436,3294.1,3293.0,0.13984626]
[1768633110164,0.26696284,3294.0,3293.0,0.13984626]
[1768633110374,0.00257436,3294.1,3293.0,0.13984626]
[1768633110576,0.26696285,3294.0,3293.0,0.13984626]
[1768633110772,0.00257436,3294.1,3293.0,0.13984626]
[1768633110963,0.26696285,3294.0,3293.0,0.13984626]
[1768633111258,0.00257436,3294.1,3293.0,0.13984626]
[1768633111458,0.26696288,3294.0,3293.0,0.13984626]
[1768633111667,0.00257436,3294.1,3293.0,0.13984626]
[1768633111863,0.26696288,3294.0,3293.0,0.13984626]
[1768633112068,0.00257436,3294.1,3293.0,0.13984626]
[1768633112261,0.26696288,3294.0,3293.0,0.13984626]
[1768633112465,0.00257436,3294.1,3293.0,0.13984626]
[1768633112671,0.26696292,3294.0,3293.0,0.13984626]
[1768633112870,0.00257436,3294.1,3293.0,0.13984626]
[1768633113075,0.26696292,3294.0,3293.0,0.13984626]
[1768633113370,0.00257436,3294.1,3293.0,0.13984626]
[1768633113670,0.26696297,3294.0,3293.0,0.13984626]
[1768633113873,0.00257436,3294.1,3293.0,0.13984626]
[1768633114071,0.26696297,3294.0,3293.0,0.13984626]
[1768633114272,0.00257436,3294.1,3293.0,0.13984626]
[1768633114572,0.26696305,3294.0,3293.0,0.13984626]
[1768633114871,0.00257436,3294.1,3293.0,0.13984626]
[1768633115072,0.26696305,3294.0,3293.0,0.13984626]
[1768633115261,0.00257436,3294.1,3293.0,0.13984626]
[1768633115464,0.26696315,3294.0,3293.0,0.13984626]
[1768633115665,0.00257436,3294.1,3293.0,0.13984626]
[1768633115965,0.26696315,3294.0,3293.0,0.13984626]
[1768633116165,0.00257436,3294.1,3293.0,0.13984626]
[1768633116365,0.26696327,3294.0,3293.0,0.13984626]
[1768633116565,0.00257436,3294.1,3293.0,0.13984626]
[1768633116773,0.26696327,3294.0,3293.0,0.13984626]
[1768633116974,0.00257436,3294.1,3293.0,0.13984626]
[1768633117177,0.26696327,3294.0,3293.0,0.13984626]
[1768633117376,0.00257436,3294.1,3293.0,0.13984626]
[1768633117671,0.26696342,3294.0,3293.0,0.13984626]
[1768633117872,0.00257436,3294.1,3293.0,0.13984626]
[1768633118071,0.26696342,3294.0,3293.0,0.13984626]
[1768633118270,0.00257436,3294.1,3293.0,0.13984626]
[1768633118472,0.2669636,3294.0,3293.0,0.13984626]
[1768633118671,0.00257436,3294.1,3293.0,0.13984626]
[1768633118874,0.2669636,3294.0,3293.0,0.13984626]
[1768633119068,0.00257436,3294.1,3293.0,0.13984626]
[1768633119268,0.2669636,3294.0,3293.0,0.13984626]
[1768633119473,0.00257436,3294.1,3293.0,0.13984626]
[1768633119665,0.26696381,3294.0,3293.0,0.13984626]
[1768633119864,0.00257436,3294.1,3293.0,0.13984626]
[1768633120064,0.26696381,3294.0,3293.0,0.13984626]
[1768633120265,0.00257436,3294.1,3293.0,0.13984626]
[1768633120474,0.26696406,3294.0,3293.0,0.13984626]
[1768633120660,0.00257436,3294.1,3293.0,0.13984626]
[1768633120864,0.26696406,3294.0,3293.0,0.13984626]
[1768633121073,0.00257436,3294.1,3293.0,0.13984626]
[1768633121272,0.26696406,3294.0,3293.0,0.13984626]
[1768633121467,0.00257436,3294.1,3293.0,0.13984626]
[1768633121662,0.26696432,3294.0,3293.0,0.13984626]
[1768633121875,0.00257436,3294.1,3293.0,0.13984626]
[1768633122067,0.26696426,3294.0,3293.0,0.13984626]
[1768633122269,0.00257436,3294.1,3293.0,0.13984626]
[1768633122569,0.26696444,3294.0,3293.0,0.13984626]
[1768633122773,0.00257436,3294.1,3293.0,0.13984626]
[1768633131287,0.00257436,3294.1,3293.0,1.1242349]
[1768633132184,0.00257436,3294.1,3293.0,0.98438864]
[1768633132392,0.00257436,3294.1,3293.1,0.13803925]
[1768633132581,0.00257436,3294.1,3293.1,0.14106353]
[1768633149311,1.70857436,3294.1,3293.1,0.14106353]
[1768633149810,0.00257436,3294.1,3293.1,0.14106353]
[1768633162922,0.93037179,3294.0,3293.1,0.14106353]
[1768633163123,0.93037179,3293.9,3293.1,0.14106353]
[1768633163325,0.986963,3294.1,3293.1,0.14106353]
[1768633163514,0.93037198,3294.0,3293.1,0.14106353]
[1768633163714,0.93037198,3293.9,3293.1,0.14106353]
[1768633163915,0.986963,3294.1,3293.1,0.14106353]
[1768633164218,0.98438864,3293.9,3293.1,0.14106353]
[1768633164419,0.93037986,3293.8,3293.0,0.14000675]
[1768633164625,0.98438864,3293.9,3292.6,0.14000675]
[1768633164817,0.93038701,3293.8,3292.6,0.14000675]
[1768633165016,0.98438864,3293.9,3292.6,0.14000675]
[1768633165218,0.93030033,3293.8,3292.6,0.14000675]
[1768633165423,0.98438864,3293.9,3292.6,0.14315408]
[1768633165626,0.93029728,3293.8,3292.6,0.14315408]
[1768633165826,0.98438864,3293.9,3292.6,0.14315408]
[1768633166018,0.93029729,3293.8,3292.6,0.14315408]
[1768633166211,0.98438864,3293.9,3292.6,0.14315408]
[1768633166415,0.93023793,3293.8,3292.6,0.14315408]
[1768633166714,0.98438864,3293.9,3292.6,0.14315408]
[1768633166914,0.93023299,3293.8,3292.6,0.14315408]
[1768633167114,0.98438864,3293.9,3292.6,1.12754272]
[1768633167323,0.93018195,3293.8,3292.6,1.12754272]
[1768633167622,0.93021261,3293.7,3292.6,1.12754272]
[1768633167820,0.98438864,3293.9,3292.6,1.12754272]
[1768633168020,0.93021261,3293.8,3292.6,1.12754272]
[1768633168225,0.93021261,3293.7,3292.6,1.12754272]
[1768633168417,0.98438864,3293.9,3292.6,1.12754272]
[1768633168719,0.93009228,3293.8,3292.6,1.12754272]
[1768633168912,0.93009228,3293.7,3292.6,1.12754272]
[1768633169117,0.98438864,3293.9,3292.6,1.12754272]
[1768633169314,0.9300228,3293.8,3292.6,1.12754272]
[1768633169612,0.9300228,3293.7,3292.6,1.12754272]
[1768633169814,0.98438864,3293.9,3292.6,1.12754272]
[1768633170016,0.93001108,3293.8,3292.6,1.12754272]
[1768633170215,0.93001108,3293.7,3292.6,1.12754272]
[1768633170415,0.98438864,3293.9,3292.6,1.12754272]
[1768633170616,0.92995816,3293.8,3292.6,1.12754272]
[1768633170817,0.92995816,3293.7,3292.6,1.12754272]
[1768633171017,0.98438864,3293.9,3292.6,1.12754272]
[1768633171229,0.9299159,3293.8,3292.6,1.12754272]
[1768633171418,0.9299159,3293.7,3292.6,1.12754272]
[1768633171623,0.98438864,3293.9,3292.6,1.12754272]
[1768633171821,0.92990472,3293.8,3292.6,1.12754272]
[1768633172020,0.92990472,3293.7,3292.6,1.12754272]
[1768633172222,0.98438864,3293.9,3292.6,1.12754272]
[1768633172519,0.92985895,3293.8,3292.6,1.12754272]
[1768633172719,0.92985895,3293.7,3292.6,1.12754272]
[1768633172920,0.98438864,3293.9,3292.6,1.12754272]
[1768633173129,0.92985894,3293.8,3292.6,1.12754272]
[1768633173329,0.98438864,3293.9,3292.6,1.12754272]
[1768633173630,0.92981943,3293.8,3292.6,1.12754272]
[1768633173831,0.98438864,3293.9,3292.6,1.12754272]
[1768633174029,0.92981942,3293.8,3292.6,1.12754272]
[1768633174330,0.98438864,3293.9,3292.6,1.12754272]
[1768633174531,0.92978587,3293.8,3292.6,1.12754272]
[1768633174732,0.98438864,3293.9,3292.6,1.12754272]
[1768633174928,0.92978586,3293.8,3292.6,1.12754272]
[1768633175125,0.98438864,3293.9,3292.6,1.12754272]
[1768633175431,0.92975607,3293.8,3292.6,1.12754272]
[1768633175724,0.98438864,3293.9,3292.6,1.12754272]
[1768633175919,0.92975605,3293.8,3292.6,1.12754272]
[1768633176121,0.98438864,3293.9,3292.6,1.12754272]
[1768633176326,0.92973121,3293.8,3292.6,1.12754272]
[1768633176529,0.98438864,3293.9,3292.6,1.12754272]
[1768633176731,0.92973116,3293.8,3292.6,1.12754272]
[1768633176933,0.98438864,3293.9,3292.6,1.12754272]
[1768633177126,0.92973104,3293.8,3292.6,1.12754272]
[1768633177426,0.98438864,3293.9,3292.6,1.12754272]
[1768633177628,0.92972999,3293.8,3292.6,1.12754272]
[1768633177826,0.98438864,3293.9,3292.6,1.12754272]
[1768633178027,0.92972293,3293.8,3292.6,1.12754272]
[1768633178227,0.98438864,3293.9,3292.6,1.12754272]
[1768633178434,0.92971044,3293.8,3292.6,1.12754272]
[1768633178733,0.98438864,3293.9,3292.6,1.12754272]
[1768633178936,0.92971043,3293.8,3292.6,1.12754272]
[1768633179127,0.98438864,3293.9,3292.6,1.12754272]
[1768633179325,0.92970716,3293.8,3292.6,1.12754272]
[1768633179533,0.98438864,3293.9,3292.6,1.12754272]
[1768633179735,0.92970716,3293.8,3292.6,1.12754272]
[1768633179932,0.98438864,3293.9,3292.6,1.12754272]
[1768633180136,0.92970716,3293.8,3292.6,1.12754272]
[1768633180434,0.98438864,3293.9,3292.6,1.12754272]
[1768633180635,0.92970818,3293.8,3292.6,1.12754272]
[1768633180931,0.98438864,3293.9,3292.6,1.12754272]
[1768633181131,0.92970818,3293.8,3292.6,1.12754272]
[1768633181431,0.98438864,3293.9,3292.6,1.12754272]
[1768633181622,0.92971541,3293.8,3292.6,1.12754272]
[1768633181829,0.98438864,3293.9,3292.6,1.12754272]
[1768633182129,0.92971541,3293.8,3292.6,1.12754272]
[1768633182327,0.98438864,3293.9,3292.6,1.12754272]
[1768633182533,0.92972785,3293.8,3292.6,1.12754272]
[1768633182736,0.98438864,3293.9,3292.6,1.12754272]
[1768633182934,0.92972785,3293.8,3292.6,1.12754272]
[1768633183135,0.98438864,3293.9,3292.6,1.12754272]
[1768633183337,0.92974574,3293.8,3292.6,1.12754272]
[1768633183537,0.98438864,3293.9,3292.6,1.12754272]
[1768633183736,0.92974574,3293.8,3292.6,0.14315408]
[1768633183934,0.98438864,3293.9,3292.6,0.14315408]
[1768633184235,0.92974588,3293.8,3292.6,0.14315408]
[1768633184436,0.98438864,3293.9,3292.6,0.14315408]
[1768633184637,0.92976911,3293.8,3292.6,0.14315408]
[1768633184838,0.98438864,3293.9,3292.6,0.14315408]
[1768633185142,0.98438864,3293.5,3292.6,0.00314733]
[1768633185342,0.98438864,3293.7,3292.6,0.00314733]
[1768633187542,0.13406878,3294.0,3292.6,0.00314733]
[1768633187734,0.98438864,3293.7,3292.6,0.00314733]
[1768633190234,0.9319431,3293.6,3292.6,0.00314733]
[1768633190435,0.98438864,3293.7,3292.6,0.00314733]
[1768633190643,0.9319431,3293.6,3292.6,0.00314733]
[1768633190846,0.98438864,3293.7,3292.6,0.00314733]
[1768633191045,0.9319431,3293.6,3292.6,0.00314733]
[1768633191247,0.98438864,3293.7,3292.6,0.00314733]
[1768633191437,0.93198596,3293.6,3292.6,0.00314733]
[1768633191639,0.98438864,3293.7,3292.6,0.00314733]
[1768633191837,0.93198596,3293.6,3292.6,0.00314733]
[1768633192047,0.98438864,3293.7,3292.6,0.00314733]
[1768633192247,0.93203522,3293.6,3292.6,0.00314733]
[1768633192442,0.98438864,3293.7,3292.6,0.00314733]
[1768633192643,0.93203522,3293.6,3292.6,0.00314733]
[1768633192846,0.98438864,3293.7,3292.6,0.00314733]
[1768633193042,0.93203522,3293.6,3292.6,0.00314733]
[1768633193345,0.13406878,3294.0,3292.6,0.00314733]
[1768633193535,1.19892038,3293.9,3292.6,0.00314733]
[1768633193739,1.19892038,3293.8,3292.6,0.00314733]
[1768633194040,0.93209753,3293.7,3292.6,0.00314733]
[1768633194239,0.93209753,3293.6,3292.6,0.00314733]
[1768633194439,0.13406878,3294.0,3292.6,0.00314733]
[1768633194641,1.19902581,3293.9,3292.6,0.00314733]
[1768633194842,1.19902581,3293.8,3292.6,0.00314733]
[1768633195147,0.93217973,3293.7,3292.6,0.00314733]
[1768633195341,0.93217973,3293.6,3292.6,0.00314733]
[1768633195649,0.13406878,3294.0,3292.6,0.00314733]
[1768633195853,1.19904726,3293.9,3292.6,0.00314733]
[1768633196053,1.19904726,3293.8,3292.6,0.00314733]
[1768633196260,0.93219647,3293.7,3292.6,0.00314733]
[1768633196442,0.93219647,3293.6,3292.6,0.00314733]
[1768633196647,0.13406878,3294.0,3292.6,0.00314733]
[1768633196940,1.19907557,3293.9,3292.6,0.00314733]
[1768633197139,1.19907557,3293.8,3292.6,0.00314733]
[1768633197341,0.93221862,3293.7,3292.6,0.00314733]
[1768633197542,0.93221862,3293.6,3292.6,0.00314733]
[1768633197751,0.13406878,3294.0,3292.6,0.00314733]
[1768633197950,1.19908943,3293.9,3292.6,0.00314733]
[1768633198144,1.19908943,3293.8,3292.6,0.00314733]
[1768633198350,0.93222953,3293.7,3292.6,0.00314733]
[1768633198550,0.93222953,3293.6,3292.6,0.00314733]
[1768633198750,0.13406878,3294.0,3292.6,0.00314733]
[1768633198949,1.19908268,3293.9,3292.6,0.00314733]
[1768633199149,1.19908268,3293.8,3292.6,0.00314733]
[1768633199354,0.93222379,3293.7,3292.6,0.00314733]
[1768633199547,0.93222379,3293.6,3292.6,0.00314733]
[1768633199750,0.13406878,3294.0,3292.6,0.00314733]
[1768633199949,1.19908113,3293.9,3292.6,0.00314733]
[1768633200154,0.9322226,3293.8,3292.6,0.00314733]
[1768633200345,0.9322226,3293.7,3292.6,0.00314733]
[1768633200547,0.9322226,3293.6,3292.6,0.00314733]
[1768633200748,0.13406878,3294.0,3292.6,0.00314733]
[1768633201046,0.93222351,3293.9,3292.6,0.00314733]
[1768633201244,0.93222351,3293.8,3292.6,0.00314733]
[1768633201448,0.93222351,3293.7,3292.6,0.00314733]
[1768633201743,0.93222351,3293.6,3292.6,0.00314733]
[1768633201944,0.13406878,3294.0,3292.6,0.00314733]
[1768633202141,0.93222678,3293.9,3292.6,0.00314733]
[1768633202345,0.93222678,3293.8,3292.6,0.00314733]
[1768633202546,0.93222678,3293.7,3292.6,0.00314733]
[1768633202853,0.93222678,3293.6,3292.6,0.00314733]
[1768633203356,0.93222678,3293.6,3292.6,0.00162733]
[1768633204148,0.13456524,3293.5,3292.6,0.00162733]
[1768633204348,2.05155353,3293.4,3291.8,0.13686572]
[1768633204548,0.93222678,3293.3,3291.8,0.13686572]
[1768633204754,1.11932675,3293.4,3291.8,0.13686572]
[1768633204945,0.9320094,3293.3,3291.8,0.13686572]
[1768633205150,1.11932675,3293.4,3291.8,0.13686572]
[1768633205452,0.93180694,3293.3,3291.8,0.13686572]
[1768633205650,1.11932675,3293.4,3291.8,0.13955291]
[1768633205850,0.9318084,3293.3,3291.8,0.13955291]
[1768633206056,1.11932675,3293.4,3291.8,0.13955291]
[1768633206245,0.93165476,3293.3,3291.8,0.13955291]
[1768633206446,1.11932675,3293.4,3291.8,0.13955291]
[1768633206648,0.93165468,3293.3,3291.8,0.13955291]
[1768633206957,0.13456524,3293.4,3291.8,0.13955291]
[1768633207254,0.93165473,3293.3,3291.8,0.13955291]
[1768633207457,0.13456524,3293.4,3291.8,0.13955291]
[1768633207657,0.93153426,3293.3,3291.8,0.13955291]
[1768633207857,0.13456524,3293.4,3291.8,0.13955291]
[1768633208060,0.93153426,3293.3,3291.8,0.13955291]
[1768633208252,0.13456524,3293.4,3291.8,0.13955291]
[1768633208452,0.93143786,3293.3,3291.8,0.13955291]
[1768633208652,0.13456524,3293.4,3291.8,0.13955291]
[1768633208853,0.93143786,3293.3,3291.8,0.13955291]
[1768633209052,0.13456524,3293.4,3291.8,0.13955291]
[1768633209257,0.93136436,3293.3,3291.8,0.13955291]
[1768633209454,0.13456524,3293.4,3291.8,0.13955291]
[1768633209649,0.93136361,3293.3,3291.8,0.13955291]
[1768633209850,0.13456524,3293.4,3291.8,0.13955291]
[1768633210057,0.93136345,3293.3,3291.8,0.13955291]
[1768633210258,0.13456524,3293.4,3291.8,0.13955291]
[1768633210556,0.93131166,3293.3,3291.8,0.13955291]
[1768633210757,0.13456524,3293.4,3291.8,0.13955291]
[1768633210950,0.93131166,3293.3,3291.8,0.13955291]
[1768633211149,0.13456524,3293.4,3291.8,0.13955291]
[1768633211350,0.9312765,3293.3,3291.8,0.13955291]
[1768633211650,0.13456524,3293.4,3291.8,0.13955291]
[1768633211960,0.93127653,3293.3,3291.8,0.13955291]
[1768633212155,0.13456524,3293.4,3291.8,0.13955291]
[1768633212356,0.93125611,3293.3,3291.8,0.13955291]
[1768633212556,0.13456524,3293.4,3291.8,0.13955291]
[1768633212756,0.93125833,3293.3,3291.8,0.13955291]
[1768633212959,0.13456524,3293.4,3291.8,0.13955291]
[1768633213159,0.93125806,3293.3,3291.8,0.13955291]
[1768633213360,0.13456524,3293.4,3291.8,0.13955291]
[1768633213546,0.93124234,3293.3,3291.8,0.13955291]
[1768633213751,0.13456524,3293.4,3291.8,0.13955291]
[1768633213951,0.93124234,3293.3,3291.8,0.13955291]
[1768633214152,0.13456524,3293.4,3291.8,0.13955291]
[1768633214360,0.931241,3293.3,3291.8,0.13955291]
[1768633214657,0.13456524,3293.4,3291.8,0.13955291]
[1768633214861,0.931241,3293.3,3291.8,0.13955291]
[1768633215052,0.13456524,3293.4,3291.8,0.13955291]
[1768633215254,0.93121598,3293.3,3291.8,0.13955291]
[1768633215454,0.13456524,3293.4,3291.8,0.13955291]